fUST/lending_fUST_20250626
["ID","MTS","AMOUNT","RATE_DAILY","PERIOD"]
[367862688,1750948389150,-127.11312361,0.00019658,2]
[367862689,1750948389173,-41.30691184,0.00019989,2]
[367862690,1750948391509,-258.69308816,0.00019989,2]
[367862691,1750948391532,-4.46684094,0.0001999,2]
[367862714,1750948725092,174.431437,0.00013699,2]
[367862715,1750948737733,1183.28,0.000229,31]
[367862716,1750948737798,1183.28,0.000229,31]
[367862717,1750948737873,1183.28,0.000229,31]
[367862718,1750948737922,1183.28,0.000229,31]
[367862719,1750948737976,1183.28,0.000229,31]
[367862720,1750948738031,1183.28,0.000229,31]
[367862721,1750948738102,1183.28,0.000229,31]
[367862722,1750948738212,1183.28,0.000229,31]
[367862723,1750948738274,1183.28,0.000229,31]
[367862724,1750948738331,1183.28,0.000229,31]
[367862725,1750948738385,1183.28,0.000229,31]
[367862726,1750948738452,1183.28,0.000229,31]
[367862727,1750948738502,1183.28,0.000229,31]
[367862728,1750948738571,1183.28,0.000229,31]
[367862729,1750948738626,1183.28,0.000229,31]
[367862730,1750948738689,1183.28,0.000229,31]
[367862766,1750949148047,973.0,0.00024657,120]
[367862905,1750949350382,994.05,0.000229,31]
[367862906,1750949350430,994.05,0.000229,31]
[367862907,1750949350487,994.05,0.000229,31]
[367862908,1750949350547,994.05,0.000229,31]
[367862909,1750949350619,994.05,0.000229,31]
[367862910,1750949350670,994.05,0.000229,31]
[367862911,1750949350760,994.05,0.000229,31]
[367862912,1750949350802,994.05,0.000229,31]
[367862913,1750949350850,994.05,0.000229,31]
[367862914,1750949350910,994.05,0.000229,31]
[367862915,1750949350975,994.05,0.000229,31]
[367862916,1750949351043,994.05,0.000229,31]
[367862917,1750949351100,994.05,0.000229,31]
[367862918,1750949351171,994.05,0.000229,31]
[367862919,1750949351236,994.05,0.000229,31]
[367862920,1750949351278,994.05,0.000229,31]
[367862961,1750949431957,-187.70087121,0.00018546,2]
[367862963,1750949431968,-151.0,0.00018786,2]
[367862965,1750949431977,-172.9670092,0.00018882,2]
[367862967,1750949431987,-601.553839,0.00018956,2]
[367862969,1750949431996,-154.13968343,0.0001899,2]
[367862972,1750949432008,-1076.6312445,0.0001899,2]
[367863495,1750949437952,-377.03690207,0.0001899,2]
[367863497,1750949437963,-531.31245241,0.00019,2]
[367863522,1750949438204,-651.35613953,0.00019,2]
[367863524,1750949438215,-160.0,0.00019731,2]
[367863526,1750949438224,-300.0,0.00019881,2]
[367863528,1750949438233,-300.0,0.00019881,2]
[367863530,1750949438242,-1539.88840851,0.00019882,2]
[367863532,1750949438252,-367.97420221,0.00019882,2]
[367864068,1750949445897,-302.10002581,0.00019874,2]
[367864070,1750949445910,-482.7826615,0.00019874,2]
[367864091,1750949446344,-62.04054712,0.00019874,2]
[367864093,1750949446355,-160.0,0.00019882,2]
[367864094,1750949446366,-160.0,0.00019882,2]
[367864096,1750949446377,-160.0,0.00019882,2]
[367864098,1750949446386,-836.92866116,0.00019882,2]
[367864101,1750949446399,-230.24506774,0.00019882,2]
[367864103,1750949446409,-207.4,0.00019908,2]
[367864105,1750949446419,-239.37018834,0.00019908,2]
[367864107,1750949446429,-9619.11515,0.00019987,2]
[367864108,1750949446438,-5000.0,0.00019988,2]
[367864110,1750949446448,-500.0,0.00019988,2]
[367864112,1750949446458,-472.06,0.00019988,2]
[367864114,1750949446468,-2242.47150122,0.00019988,2]
[367864116,1750949446478,-500.0,0.00019988,2]
[367864119,1750949446488,-500.0,0.00019988,2]
[367864121,1750949446498,-500.0,0.00019988,2]
[367864123,1750949446508,-500.0,0.00019988,2]
[367864125,1750949446517,-500.0,0.00019988,2]
[367864127,1750949446527,-500.0,0.00019988,2]
[367864129,1750949446536,-500.0,0.00019988,2]
[367864131,1750949446547,-500.0,0.00019988,2]
[367864133,1750949446557,-500.0,0.00019988,2]
[367864135,1750949446567,-500.0,0.00019988,2]
[367864137,1750949446577,-500.0,0.00019988,2]
[367864139,1750949446587,-500.0,0.00019988,2]
[367864142,1750949446597,-500.0,0.00019988,2]
[367864144,1750949446607,-500.0,0.00019988,2]
[367864146,1750949446617,-411.10678173,0.00019988,2]
[367864148,1750949446628,-500.0,0.00019988,2]
[367864150,1750949446638,-500.0,0.00019988,2]
[367864152,1750949446648,-500.0,0.00019988,2]
[367864154,1750949446658,-500.0,0.00019988,2]
[367864156,1750949446668,-500.0,0.00019988,2]
[367864158,1750949446678,-500.0,0.00019988,2]
[367864160,1750949446688,-500.0,0.00019988,2]
[367864162,1750949446699,-108.03569593,0.00019988,2]
[367868034,1750949805063,165.709865,0.00013699,2]
[367868035,1750949962443,825.14,0.000229,31]
[367868036,1750949962486,825.14,0.000229,31]
[367868037,1750949962555,825.14,0.000229,31]
[367868038,1750949962614,825.14,0.000229,31]
[367868039,1750949962675,825.14,0.000229,31]
[367868040,1750949962745,825.14,0.000229,31]
[367868041,1750949962794,825.14,0.000229,31]
[367868042,1750949962848,825.14,0.000229,31]
[367868043,1750949962913,825.14,0.000229,31]
[367868044,1750949962972,825.14,0.000229,31]
[367868045,1750949963029,825.14,0.000229,31]
[367868046,1750949963099,825.14,0.000229,31]
[367868047,1750949963160,825.14,0.000229,31]
[367868048,1750949963215,825.14,0.000229,31]
[367868049,1750949963283,825.14,0.000229,31]
[367868050,1750949963336,825.14,0.000229,31]
[367868051,1750950016667,195.8705281,0.0001811,9]
[367868067,1750950574456,703.12,0.000229,31]
[367868068,1750950574573,703.12,0.000229,31]
[367868069,1750950574621,703.12,0.000229,31]
[367868070,1750950574670,703.12,0.000229,31]
[367868071,1750950574732,703.12,0.000229,31]
[367868072,1750950574792,703.12,0.000229,31]
[367868073,1750950574846,703.12,0.000229,31]
[367868074,1750950575038,703.12,0.000229,31]
[367868075,1750950575072,703.12,0.000229,31]
[367868076,1750950575106,703.12,0.000229,31]
[367868077,1750950575134,703.12,0.000229,31]
[367868078,1750950575163,703.12,0.000229,31]
[367868079,1750950575197,703.12,0.000229,31]
[367868080,1750950575258,703.12,0.000229,31]
[367868081,1750950575320,703.12,0.000229,31]
[367868082,1750950575391,703.12,0.000229,31]
[367868122,1750950632203,-693.14072763,0.00016556,2]
[367868126,1750950632242,-4306.85927237,0.00016556,2]
[367868129,1750950632253,-1000.0,0.000178,2]
[367868131,1750950632263,-454.37256555,0.000178,3]
[367868757,1750950638746,-545.62743445,0.000178,3]
[367868759,1750950638756,-300.776919,0.00018629,2]
[367868761,1750950638765,-1000.0,0.000188,4]
[367868763,1750950638774,-1000.0,0.000188,5]
[367868765,1750950638784,-3439.5428681,0.000189,2]
[367868767,1750950638793,-1200.0,0.00018909,2]
[367868769,1750950638803,-300.0,0.0001891,2]
[367868771,1750950638812,-300.0,0.0001891,2]
[367868773,1750950638821,-300.0,0.00018912,2]
[367868775,1750950638831,-300.0,0.00018913,2]
[367868777,1750950638840,-8248.2801887,0.00018914,2]
[367868779,1750950638849,-5582.7399976,0.00018965,2]
[367868781,1750950638859,-517.953059,0.00019178,2]
[367868783,1750950638869,-168.0,0.00019423,2]
[367868785,1750950638878,-168.0,0.00019443,2]
[367868787,1750950638888,-160.0,0.00019693,2]
[367868789,1750950638897,-213.72380786,0.00019735,2]
[367868791,1750950638906,-177.92820716,0.00019741,2]
[367868792,1750950638915,-1000.0,0.000198,6]
[367868794,1750950638924,-804.44435405,0.000198,7]
[367869381,1750950644851,-700.56768757,0.00019141,2]
[367869396,1750950644985,-2738.97518046,0.00019141,2]
[367869398,1750950644996,-3439.54286803,0.00019383,2]
[367869400,1750950645006,-3439.54286803,0.00019624,2]
[367869404,1750950645016,-195.55564595,0.000198,7]
[367869406,1750950645030,-160.0,0.00019865,2]
[367869408,1750950645039,-160.0,0.00019865,2]
[367869410,1750950645049,-160.0,0.00019865,2]
[367869411,1750950645058,-230.24506774,0.00019865,2]
[367869414,1750950645070,-836.92866116,0.00019865,2]
[367869416,1750950645080,-3439.54286803,0.00019866,2]
[367869418,1750950645090,-5575.03836334,0.00019871,2]
[367869527,1750950646171,-1283.66864403,0.00019871,2]
[367869529,1750950646181,-7356.33026697,0.00019871,2]
[367877063,1750950916766,165.709865,0.00013699,2]
[367877064,1750950933319,185.88028965,0.000222,69]
[367877065,1750950938301,185.88028964,0.000222,69]
[367877066,1750950943266,185.88028964,0.000222,69]
[367877067,1750951121159,-160.0,0.00018392,2]
[367877068,1750951121183,-160.0,0.00018392,2]
[367877069,1750951121210,-360.44557691,0.00018604,2]
[367877070,1750951121235,-300.77692,0.00018896,2]
[367877071,1750951121260,-164.37750309,0.00019286,2]
[367877072,1750951186487,590.68,0.000229,31]
[367877073,1750951186545,590.68,0.000229,31]
[367877074,1750951186608,590.68,0.000229,31]
[367877075,1750951186723,590.68,0.000229,31]
[367877076,1750951186799,590.68,0.000229,31]
[367877077,1750951186846,590.68,0.000229,31]
[367877078,1750951186902,590.68,0.000229,31]
[367877079,1750951186969,590.68,0.000229,31]
[367877080,1750951187066,590.68,0.000229,31]
[367877081,1750951187130,590.68,0.000229,31]
[367877082,1750951187182,590.68,0.000229,31]
[367877083,1750951187246,590.68,0.000229,31]
[367877084,1750951187316,590.68,0.000229,31]
[367877085,1750951187406,590.68,0.000229,31]
[367877086,1750951187435,590.68,0.000229,31]
[367877087,1750951187492,590.68,0.000229,31]
[367877088,1750951206569,-330.83057366,0.00016605,2]
[367877089,1750951210875,-324.6703462,0.00016605,2]
[367877090,1750951441370,185.88028964,0.000222,69]
[367877096,1750951721328,9094.07003722,0.00015,2]
[367877104,1750951799301,496.22,0.000229,31]
[367877105,1750951799360,496.22,0.000229,31]
[367877106,1750951799422,496.22,0.000229,31]
[367877107,1750951799471,496.22,0.000229,31]
[367877108,1750951799535,496.22,0.000229,31]
[367877109,1750951799597,496.22,0.000229,31]
[367877110,1750951799665,496.22,0.000229,31]
[367877111,1750951799724,496.22,0.000229,31]
[367877112,1750951799788,496.22,0.000229,31]
[367877113,1750951799856,496.22,0.000229,31]
[367877114,1750951799929,496.22,0.000229,31]
[367877115,1750951799990,496.22,0.000229,31]
[367877116,1750951800053,496.22,0.000229,31]
[367877117,1750951800109,496.22,0.000229,31]
[367877118,1750951800165,496.22,0.000229,31]
[367877119,1750951800229,496.22,0.000229,31]
[367877120,1750951816524,204.96719297,0.00016107,2]
[367877289,1750951833290,-517.9462302,0.00016426,2]
[367877819,1750951839247,-4001.41286751,0.00016426,2]
[367878133,1750951843512,-480.64090229,0.00016426,2]
[367878135,1750951843522,-776.54141871,0.00016426,2]
[367878141,1750951843611,-1095.12558368,0.00016426,2]
[367878142,1750951843622,-3128.33299761,0.00016426,2]
[367878143,1750951843632,-300.0,0.00016604,2]
[367878144,1750951843642,-300.0,0.00016604,2]
[367878145,1750951843651,-300.0,0.00016604,2]
[367878146,1750951843660,-4344.49908014,0.00016605,2]
[367878147,1750951843670,-5000.0,0.00016605,2]
[367878148,1750951843679,-420.0,0.00018142,2]
[367878149,1750951843688,-420.0,0.00018142,2]
[367878150,1750951843697,-1560.5272682,0.00018723,2]
[367878151,1750951843707,-2949.45410961,0.000189,2]
[367878152,1750951843716,-1000.0,0.00018913,2]
[367878153,1750951843725,-366.0585355,0.00019041,2]
[367878154,1750951843735,-366.0585355,0.000191,2]
[367878155,1750951843746,-2949.45410953,0.00019141,2]
[367878156,1750951843756,-521.0,0.00019144,2]
[367878157,1750951843765,-414.362447,0.00019178,2]
[367878158,1750951843774,-175.14154734,0.00019187,2]
[367878159,1750951843784,-12560.17507789,0.00019242,2]
[367878160,1750951843793,-168.0,0.00019287,2]
[367878161,1750951843803,-920.03,0.000193,2]
[367878163,1750951843812,-2854.83759883,0.00019383,2]
[367878429,1750951846442,-94.6165107,0.00019383,2]
[367878431,1750951846452,-168.0,0.00019391,2]
[367878433,1750951846462,-160.0,0.00019534,2]
[367878435,1750951846471,-168.0,0.00019569,2]
[367878437,1750951846481,-6604.96185,0.00019666,2]
[367878439,1750951846493,-153.0,0.00019667,2]
[367878441,1750951846502,-153.0,0.00019667,2]
[367878443,1750951846511,-153.0,0.00019667,2]
[367878445,1750951846521,-153.0,0.00019667,2]
[367878447,1750951846531,-177.4452169,0.00019667,2]
[367878449,1750951846540,-575.0264769,0.00019667,2]
[367878451,1750951846550,-177.4452169,0.00019667,2]
[367878453,1750951846559,-575.0264769,0.00019667,2]
[367878455,1750951846569,-153.0,0.00019667,2]
[367878457,1750951846578,-177.4156324,0.00019667,2]
[367878459,1750951846587,-153.0,0.00019667,2]
[367878461,1750951846596,-574.4216802,0.00019667,2]
[367878463,1750951846606,-159.2154015,0.00019667,2]
[367878465,1750951846615,-159.2154015,0.00019667,2]
[367878467,1750951846624,-366.0585355,0.00019686,2]
[367878469,1750951846633,-160.0,0.00019699,2]
[367878471,1750951846643,-159.2154015,0.000197,2]
[367878473,1750951846653,-1149.9742396,0.000197,2]
[367878475,1750951846662,-177.4452169,0.000197,2]
[367878477,1750951846671,-202.4526486,0.000197,2]
[367878479,1750951846680,-168.0,0.00019704,2]
[367878481,1750951846689,-230.24506774,0.00019705,2]
[367878483,1750951846699,-836.92866116,0.00019705,2]
[367878485,1750951846708,-160.0,0.00019705,2]
[367878487,1750951846718,-846.92323443,0.00019735,2]
[367878489,1750951846728,-160.0,0.00019752,2]
[367878491,1750951846738,-160.0,0.00019752,2]
[367878493,1750951846749,-213.72380786,0.00019759,2]
[367878495,1750951846758,-214.88139422,0.00019759,2]
[367878497,1750951846767,-587.0,0.00019823,2]
[367878499,1750951846777,-587.0,0.00019823,2]
[367878501,1750951846786,-2949.45410953,0.00019866,2]
[367878503,1750951846794,-151.0,0.00019871,2]
[367878505,1750951846804,-168.0,0.0001988,2]
[367878507,1750951846813,-366.0585355,0.000199,2]
[367878509,1750951846822,-432.97186526,0.00019967,2]
[367878511,1750951846831,-220.42795755,0.00019967,2]
[367878513,1750951846842,-500.0,0.00019967,2]
[367878515,1750951846852,-500.0,0.00019967,2]
[367878517,1750951846862,-500.0,0.00019967,2]
[367878519,1750951846872,-500.0,0.00019967,2]
[367878521,1750951846881,-627.37031972,0.00019967,2]
[367878523,1750951846891,-741.33464267,0.00019967,2]
[367878525,1750951846901,-500.0,0.00019967,2]
[367878527,1750951846911,-500.0,0.00019967,2]
[367878529,1750951846921,-500.0,0.00019967,2]
[367878531,1750951846930,-500.0,0.00019967,2]
[367878533,1750951846940,-741.33464267,0.00019967,2]
[367878535,1750951846949,-500.0,0.00019967,2]
[367878537,1750951846958,-500.0,0.00019967,2]
[367878539,1750951846968,-370.38636817,0.00019967,2]
[367878541,1750951846978,-500.0,0.00019967,2]
[367878543,1750951846987,-741.33464267,0.00019967,2]
[367878545,1750951846997,-500.0,0.00019967,2]
[367878547,1750951847007,-500.0,0.00019967,2]
[367878549,1750951847016,-741.33464267,0.00019967,2]
[367878551,1750951847026,-500.0,0.00019967,2]
[367878553,1750951847035,-741.33464267,0.00019967,2]
[367878555,1750951847045,-500.0,0.00019967,2]
[367878557,1750951847055,-500.0,0.00019967,2]
[367878559,1750951847064,-741.33464267,0.00019967,2]
[367878561,1750951847073,-500.0,0.00019967,2]
[367878563,1750951847082,-500.0,0.00019967,2]
[367878565,1750951847092,-500.0,0.00019967,2]
[367878567,1750951847101,-741.33464267,0.00019967,2]
[367878569,1750951847109,-500.0,0.00019967,2]
[367878571,1750951847119,-741.33464267,0.00019967,2]
[367878573,1750951847128,-500.0,0.00019967,2]
[367878575,1750951847137,-500.0,0.00019967,2]
[367878577,1750951847147,-741.33464267,0.00019967,2]
[367878579,1750951847157,-500.0,0.00019967,2]
[367878581,1750951847166,-500.0,0.00019967,2]
[367878584,1750951847175,-741.33464267,0.00019967,2]
[367878585,1750951847185,-500.0,0.00019967,2]
[367878587,1750951847194,-500.0,0.00019967,2]
[367878589,1750951847203,-741.33464267,0.00019967,2]
[367878592,1750951847212,-500.0,0.00019967,2]
[367878593,1750951847221,-500.0,0.00019967,2]
[367878595,1750951847230,-741.33464267,0.00019967,2]
[367878597,1750951847239,-500.0,0.00019967,2]
[367878600,1750951847249,-500.0,0.00019967,2]
[367878602,1750951847259,-741.33464267,0.00019967,2]
[367878604,1750951847269,-500.0,0.00019967,2]
[367878606,1750951847278,-500.0,0.00019967,2]
[367878608,1750951847288,-500.0,0.00019967,2]
[367878610,1750951847297,-500.0,0.00019967,2]
[367878612,1750951847307,-500.0,0.00019967,2]
[367878614,1750951847317,-741.33464267,0.00019967,2]
[367878616,1750951847326,-500.0,0.00019967,2]
[367878618,1750951847336,-500.0,0.00019967,2]
[367878620,1750951847346,-741.33464267,0.00019967,2]
[367878622,1750951847357,-500.0,0.00019967,2]
[367878624,1750951847367,-500.0,0.00019967,2]
[367878626,1750951847376,-618.97803648,0.00019967,2]
[367878643,1750951847531,-122.35660619,0.00019967,2]
[367878645,1750951847541,-228.58732981,0.00019967,2]
[367878647,1750951847553,-271.41267019,0.00019967,2]
[367878649,1750951847563,-202.5018824,0.00019967,2]
[367878662,1750951847675,-532.2648,0.00019967,2]
[367878664,1750951847686,-6.56796027,0.00019967,2]
[367878666,1750951847696,-423.43203973,0.00019967,2]
[367879659,1750951884763,165.709865,0.00013699,2]
[367879660,1750951926623,185.88028964,0.000222,69]
[367879664,1750952411512,406.94,0.000229,31]
[367879665,1750952411558,406.94,0.000229,31]
[367879666,1750952411593,406.94,0.000229,31]
[367879667,1750952411634,406.94,0.000229,31]
[367879668,1750952411800,406.94,0.000229,31]
[367879669,1750952411852,406.94,0.000229,31]
[367879670,1750952411914,406.94,0.000229,31]
[367879671,1750952411970,406.94,0.000229,31]
[367879672,1750952412014,406.94,0.000229,31]
[367879673,1750952412073,406.94,0.000229,31]
[367879674,1750952412123,406.94,0.000229,31]
[367879675,1750952412186,406.94,0.000229,31]
[367879676,1750952412238,406.94,0.000229,31]
[367879677,1750952412286,406.94,0.000229,31]
[367879678,1750952412371,406.94,0.000229,31]
[367879679,1750952412447,406.94,0.000229,31]
[367879682,1750952697857,200.41157134,6.8e-07,2]
[367879686,1750952862382,-272.49442772,0.00017916,2]
[367879687,1750952864936,-260.0051831,0.00017916,2]
[367879689,1750952937156,162.80343,0.00013699,2]
[367879789,1750953023161,351.79,0.000229,31]
[367879790,1750953023368,351.79,0.000229,31]
[367879791,1750953023411,351.79,0.000229,31]
[367879792,1750953023455,351.79,0.000229,31]
[367879793,1750953023529,351.79,0.000229,31]
[367879794,1750953023571,351.79,0.000229,31]
[367879795,1750953023609,351.79,0.000229,31]
[367879796,1750953023672,351.79,0.000229,31]
[367879797,1750953023748,351.79,0.000229,31]
[367879798,1750953023805,351.79,0.000229,31]
[367879799,1750953023850,351.79,0.000229,31]
[367879800,1750953023913,351.79,0.000229,31]
[367879801,1750953023972,351.79,0.000229,31]
[367879802,1750953024027,351.79,0.000229,31]
[367879803,1750953024098,351.79,0.000229,31]
[367879804,1750953024185,351.79,0.000229,31]
[367879805,1750953024421,-380.41199733,0.00016417,2]
[367879857,1750953032752,-196.59643022,0.00016417,2]
[367879859,1750953032762,-288.50421378,0.00016998,2]
[367879861,1750953032772,-790.389356,0.00017282,2]
[367879865,1750953032798,-1055.32285093,0.00017282,2]
[367879867,1750953032810,-2204.7,0.00017282,2]
[367879870,1750953032821,-1194.0,0.00017282,2]
[367880365,1750953039605,-18179.30839457,0.00017282,2]
[367880367,1750953039615,-3780.82277535,0.00017693,2]
[367880370,1750953039625,-300.0,0.00017892,2]
[367880372,1750953039635,-9988.91776097,0.00017893,2]
[367880374,1750953039646,-2191.41504593,0.00017893,2]
[367880376,1750953039658,-1766.69930332,0.00017893,2]
[367880499,1750953041241,-500.0,0.00017893,2]
[367880534,1750953041587,-814.56171938,0.00017893,2]
[367880536,1750953041597,-963.56404646,0.00017916,2]
[367880539,1750953041612,-2715.02976672,0.00017916,2]
[367880541,1750953041621,-642.3739272,0.00018355,2]
[367880543,1750953041631,-160.0,0.00018451,2]
[367880545,1750953041640,-250.0,0.00018544,2]
[367880547,1750953041650,-168.9648489,0.00018579,2]
[367880549,1750953041660,-160.0,0.00018786,2]
[367880551,1750953041671,-2556.19356167,0.000189,2]
[367880553,1750953041681,-2712.49868003,0.00018913,2]
[367880555,1750953041696,-9847.67639786,0.00018913,2]
[367880558,1750953041705,-230.24506774,0.00018932,2]
[367880559,1750953041715,-836.92866116,0.00018932,2]
[367880561,1750953041724,-160.0,0.00018932,2]
[367880563,1750953041733,-846.92323443,0.00018932,2]
[367880565,1750953041742,-214.88139422,0.00018932,2]
[367880567,1750953041753,-213.72380786,0.00018932,2]
[367880589,1750953041961,-160.0,0.00018935,2]
[367880591,1750953041972,-366.0585355,0.00018941,2]
[367880593,1750953041982,-732.117071,0.00019041,2]
[367880595,1750953041991,-263.37626313,0.0001914,2]
[367880597,1750953042000,-500.0,0.0001914,2]
[367880599,1750953042010,-500.0,0.0001914,2]
[367880601,1750953042019,-500.0,0.0001914,2]
[367880603,1750953042029,-500.0,0.0001914,2]
[367880604,1750953042039,-500.0,0.0001914,2]
[367880606,1750953042048,-500.0,0.0001914,2]
[367880608,1750953042058,-500.0,0.0001914,2]
[367880610,1750953042067,-500.0,0.0001914,2]
[367880612,1750953042077,-500.0,0.0001914,2]
[367880614,1750953042086,-500.0,0.0001914,2]
[367880615,1750953042097,-500.0,0.0001914,2]
[367880617,1750953042106,-500.0,0.0001914,2]
[367880619,1750953042116,-500.0,0.0001914,2]
[367880621,1750953042125,-500.0,0.0001914,2]
[367880623,1750953042134,-500.0,0.0001914,2]
[367880625,1750953042144,-500.0,0.0001914,2]
[367880627,1750953042154,-500.0,0.0001914,2]
[367880629,1750953042165,-500.0,0.0001914,2]
[367880631,1750953042175,-500.0,0.0001914,2]
[367880633,1750953042185,-500.0,0.0001914,2]
[367880635,1750953042195,-500.0,0.0001914,2]
[367880637,1750953042204,-500.0,0.0001914,2]
[367880639,1750953042214,-500.0,0.0001914,2]
[367880641,1750953042223,-500.0,0.0001914,2]
[367880643,1750953042234,-500.0,0.0001914,2]
[367880645,1750953042243,-500.0,0.0001914,2]
[367880647,1750953042252,-500.0,0.0001914,2]
[367880649,1750953042262,-500.0,0.0001914,2]
[367880651,1750953042272,-500.0,0.0001914,2]
[367880653,1750953042281,-500.0,0.0001914,2]
[367880655,1750953042290,-500.0,0.0001914,2]
[367880657,1750953042300,-500.0,0.0001914,2]
[367880659,1750953042309,-500.0,0.0001914,2]
[367880661,1750953042318,-500.0,0.0001914,2]
[367880663,1750953042328,-500.0,0.0001914,2]
[367880665,1750953042337,-500.0,0.0001914,2]
[367880667,1750953042346,-419.98713934,0.0001914,2]
[367880669,1750953042355,-500.0,0.0001914,2]
[367880670,1750953042365,-500.0,0.0001914,2]
[367880673,1750953042374,-500.0,0.0001914,2]
[367880674,1750953042383,-500.0,0.0001914,2]
[367880676,1750953042393,-397.46600169,0.0001914,2]
[367880679,1750953042405,-102.53399831,0.0001914,2]
[367880681,1750953042414,-500.0,0.0001914,2]
[367880682,1750953042423,-500.0,0.0001914,2]
[367880684,1750953042432,-500.0,0.0001914,2]
[367880686,1750953042441,-267.63993571,0.0001914,2]
[367880780,1750953044426,-232.36006429,0.0001914,2]
[367880782,1750953044435,-500.0,0.0001914,2]
[367880784,1750953044445,-500.0,0.0001914,2]
[367880786,1750953044454,-500.0,0.0001914,2]
[367880788,1750953044464,-280.94528977,0.0001914,2]
[367880790,1750953044476,-219.05471023,0.0001914,2]
[367880792,1750953044490,-500.0,0.0001914,2]
[367880794,1750953044500,-500.0,0.0001914,2]
[367880797,1750953044510,-500.0,0.0001914,2]
[367880799,1750953044519,-500.0,0.0001914,2]
[367880802,1750953044528,-291.8582107,0.0001914,2]
[367880803,1750953044538,-500.0,0.0001914,2]
[367880805,1750953044547,-500.0,0.0001914,2]
[367880808,1750953044556,-500.0,0.0001914,2]
[367880811,1750953044565,-2556.19356159,0.00019141,2]
[367880814,1750953044574,-331.489957,0.00019178,2]
[367880816,1750953044583,-437.67,0.00019319,3]
[367880817,1750953044592,-218.84,0.00019319,3]
[367880819,1750953044601,-656.54,0.00019319,3]
[367880821,1750953044610,-2456.35356047,0.00019325,2]
[367880822,1750953044622,-972.99994321,0.00019325,2]
[367880823,1750953044632,-151.0,0.00019325,2]
[367880824,1750953044642,-33606.01203106,0.00019326,2]
[367880825,1750953044651,-151.0,0.00019326,2]
[367880826,1750953044661,-151.0,0.00019326,2]
[367880827,1750953044670,-151.0,0.00019326,2]
[367880828,1750953044679,-151.0,0.00019326,2]
[367880829,1750953044689,-151.0,0.00019326,2]
[367880830,1750953044698,-151.0,0.00019326,2]
[367880831,1750953044707,-151.709803,0.00019326,2]
[367880832,1750953044717,-151.0,0.00019326,2]
[367880834,1750953044726,-151.0,0.00019326,2]
[367880836,1750953044738,-151.0,0.00019326,2]
[367880838,1750953044747,-259.190035,0.00019326,2]
[367880840,1750953044757,-151.0,0.00019327,2]
[367880842,1750953044766,-287.936773,0.00019327,2]
[367880844,1750953044776,-197.317254,0.00019327,2]
[367880845,1750953044785,-151.0,0.00019327,2]
[367880847,1750953044795,-206.08478,0.00019327,2]
[367880849,1750953044806,-151.0,0.00019327,2]